Workbook

Sheet FY27 & FY26 SUMMARY
D1: ATTACHMENT
E2: Commonwealth of Massachusetts
E3: Wagner-Peyser 90% and 10% Funds
B4: FISCAL YEAR 2027 AND FISCAL YEAR 2026 COMPARED
A7: MassHire | B7: FY 2026 | C7: FY 2026 | D7: FY 2026 | E7: FY 2027 | F7: FY 2027 | G7: FY 2027 | H7: Change | I7: % Change
A8: Workforce | B8: 90% | C8: 10% | D8: Total | E8: 90% | F8: 10% | G8: Total | H8: from | I8: from
A9: Area | H9: FY 2026 | I9: FY 2026
B10: Allocation | C10: Allocation | D10: Allocation | E10: Allocation | F10: Allocation | G10: Allocation
A12: Berkshire | B12: 169368.474 | C12: 14584.4985 | D12: =B12+C12 -> 183952.9725 | E12: 177634.6605 | F12: 15326.28189 | G12: =E12+F12 -> 192960.9424 | H12: =G12 -D12 -> 9007.969882 | I12: =H12/D12 -> 0.04896887373
A13: Boston | B13: 1040435.668 | C13: 89593.01624 | D13: =B13+C13 -> 1130028.684 | E13: 1112382.904 | F13: 95772.93741 | G13: =E13+F13 -> 1208155.842 | H13: =G13 -D13 -> 78127.15743 | I13: =H13/D13 -> 0.06913732236
A14: Bristol | B14: 578213.7055 | C14: 49790.59397 | D14: 628004.2995 | E14: 610131.7333 | F14: 52517.9349 | G14: 662649.6682 | H14: 34645.36871 | I14: 0.05516740688
A15: Brockton | B15: 387905.1292 | C15: 33402.92111 | D15: 421308.0503 | E15: 405093.677 | F15: 34924.89312 | G15: 440018.5701 | H15: 18710.51975 | I15: 0.04441054409
A16: Cape & Islands | B16: 388623.6622 | C16: 33464.79474 | D16: 422088.4569 | E16: 406176.8151 | F16: 34952.87781 | G16: 441129.693 | H16: 19041.23606 | I16: 0.04511195639
A17: Central MA | B17: 892315.2391 | C17: 76838.20937 | D17: 969153.4485 | E17: 948829.0402 | F17: 81696.63834 | G17: 1030525.679 | H17: 61372.23008 | I17: 0.06332560667
A18: Franklin/Hampshire | B18: 336581.3492 | C18: 28983.37611 | D18: 365564.7254 | E18: 354186.1828 | F18: 30465.99918 | G18: 384652.182 | H18: 19087.45664 | I18: 0.05221361722
A19: Greater Lowell | B19: 442924.2214 | C19: 38140.67335 | D19: 481064.8947 | E19: 468998.8292 | F19: 40391.2359 | G19: 509390.0651 | H19: 28325.17038 | I19: 0.05888014421
A20: Greater New Bedford | B20: 328164.2493 | C20: 28258.57073 | D20: 356422.82 | E20: 343354.8011 | F20: 29570.4891 | G20: 372925.2902 | H20: 16502.47012 | I20: 0.04630026248
A21: Hampden | B21: 644216.0866 | C21: 55474.12884 | D21: 699690.2154 | E21: 670462.5295 | F21: 57769.72839 | G21: 728232.2579 | H21: 28542.04253 | I21: 0.04079239912
A22: Merrimack Valley | B22: 548753.8558 | C22: 47253.77514 | D22: 596007.6309 | E22: 569730.6794 | F22: 49029.17688 | G22: 618759.8563 | H22: 22752.22536 | I22: 0.038174386
A23: Metro North | B23: 1256714.077 | C23: 108216.9789 | D23: 1364931.056 | E23: 1336592.506 | F23: 115101.03 | G23: 1451693.536 | H23: 86762.4804 | I23: 0.0635654673
A24: Metro South/West | B24: 1385331.47 | C24: 119292.3586 | D24: 1504623.828 | E24: 1458987.12 | F24: 125623.2734 | G24: 1584610.393 | H24: 79986.56502 | I24: 0.05316050664
A25: North Central | B25: 383491.2842 | C25: 33022.84024 | D25: 416514.1244 | E25: 408343.0915 | F25: 35195.41179 | G25: 443538.5033 | H25: 27024.37889 | I25: 0.06488226282
A26: North Shore | B26: 639494.2988 | C26: 55067.5307 | D26: 694561.8295 | E26: 673711.9441 | F26: 58012.26237 | G26: 731724.2064 | H26: 37162.37693 | I26: 0.05350477863
A27: South Shore | B27: 842223.2298 | C27: 72524.73345 | D27: 914747.9633 | E27: 888173.3025 | F27: 76472.82954 | G27: 964646.132 | H27: 49898.16875 | I27: 0.05454854315
B29: 10264756 | C29: 883909 | D29: =SUM(D12:D28) -> 11148665 | E29: 10832790 | F29: 932823 | G29: 11765612.82 | H29: 616947.8169 | I29: 0.05533826848
A31: Note per 29 U.S. Code § 49f(c) and 20 CFR 652.205: WP90% and WP10% funds authorized under the Wagner-Peyser Act (Section 7) may be used per subsection 7(c) to provide additional funding for other activities authorized under the Workforce Innovation and Opportunity Act provided the activities meet requirements defined in subsection 7(c)(1)(A-D).
A32: 1. Source for FY 2027 State Allotments: Training and Employment Guidance Letter (TEGL) 10-25, issued April 28, 2026
A33: 2.Source for FY 2026 State Allotments: Training and Employment Guidance Letter (TEGL) 11-24, issued May 20, 2025
A34: SSTA / Employment Service 90% Retained DCSL_FESS90C_RTND_EOL238 | E34: Employment Service 10% Retained DCSL_FESS90C_RTND_EOL239
A35: MassHire Department of Career Services | G35: Date: | H35: 2026-06-08

Sheet FY27 ES90
F1: ATTACHMENT
E2: Commonwealth of Massachusetts
F3: Wagner-Peyser 90% Funds
F4: Formula Allocations
F5: FISCAL YEAR 2027
I7: FY2027 | J7: FY 2027
A8: MassHire | C8: Final | H8: FY 2027 | I8: Hold | J8: Hold | K8: Final | M8: Change | N8: % Change
A9: Workforce | B9: FY 2026 | C9: FY 2026 | D9: CY 2025 | E9: Labor | F9: CY 2025 | H9: Weighted | I9: Harmless | J9: Harmless | K9: FY 2027 | L9: FY 2027 | M9: from | N9: from
A10: Area | B10: Allocation | C10: Formula | D10: Labor | E10: Force | F10: Number of | G10: Unemployed | H10: Formula | I10: Upper | J10: Lower | K10: Formula | L10: Allocation | M10: FY 2026 | N10: FY 2026
C11: Share | D11: Force | E11: Share | F11: Unemployed | G11: Share | H11: Share | I11: Share | J11: Share | K11: Share
A13: Berkshire | B13: 169368 | C13: 0.0165 | D13: 65335 | E13: =ROUND(D13/$D$30,5) -> 0.01656 | F13: 2879 | G13: =ROUND(F13/$F$30,5) -> 0.01618 | H13: =ROUND((E13*2+G13)/3,5) -> 0.01643 | I13: =ROUND(C13*1.1,5) -> 0.01815 | J13: =ROUND(C13*0.9,5) -> 0.01485 | K13: 0.0164 | L13: 177634.6605 | M13: =L13-B13 -> 8266.660492 | N13: =M13/B13 -> 0.0488088688 | R13: 180636.0565
A14: Boston | B14: 1040436 | C14: 0.10136 | D14: 408983 | E14: =ROUND(D14/$D$30,5) -> 0.10369 | F14: 17909 | G14: =ROUND(F14/$F$30,5) -> 0.10063 | H14: =ROUND((E14*2+G14)/3,5) -> 0.10267 | I14: =ROUND(C14*1.1,5) -> 0.1115 | J14: =ROUND(C14*0.9,5) -> 0.09122 | K14: 0.1027 | L14: 1112382.904 | M14: 71946.90442 | N14: 0.06915072568 | R14: 1073434.957
A15: Bristol | B15: 578214 | C15: 0.05633 | D15: 215833 | E15: 0.05472 | F15: 10580 | G15: 0.05945 | H15: 0.0563 | I15: 0.06196 | J15: 0.0507 | K15: 0.05633 | L15: 610131.7333 | M15: 31917.73326 | N15: 0.05520055423 | R15: 579384.9606
A16: Brockton | B16: 387905 | C16: 0.03779 | D16: 143645 | E16: 0.03642 | F16: 7027 | G16: 0.03948 | H16: 0.03744 | I16: 0.04157 | J16: 0.03401 | K16: 0.0374 | L16: 405093.677 | M16: 17188.67698 | N16: 0.04431156333 | R16: 390547.6119
A17: Cape & Islands | B17: 388624 | C17: 0.03786 | D17: 139634 | E17: 0.0354 | F17: 7405 | G17: 0.04161 | H17: 0.03747 | I17: 0.04165 | J17: 0.03407 | K17: 0.0375 | L17: 406176.8151 | M17: 17552.81515 | N17: 0.04516657527 | R17: 394492.5372
A18: Central MA | B18: 892315 | C18: 0.08693 | D18: 345720 | E18: 0.08765 | F18: 15563 | G18: 0.08745 | H18: 0.08758 | I18: 0.09562 | J18: 0.07824 | K18: 0.0876 | L18: 948829.0402 | M18: 56514.04019 | N18: 0.06333418152 | R18: 887608.2088
A19: Franklin/Hampshire | B19: 336581 | C19: 0.03279 | D19: 131150 | E19: 0.03325 | F19: 5602 | G19: 0.03148 | H19: 0.03266 | I19: 0.03607 | J19: 0.02951 | K19: 0.0327 | L19: 354186.1828 | M19: 17605.18281 | N19: 0.05230593174 | R19: 367500.9426
A20: Greater Lowell | B20: 442924 | C20: 0.04315 | D20: 169704 | E20: 0.04303 | F20: 7801 | G20: 0.04383 | H20: 0.0433 | I20: 0.04747 | J20: 0.03884 | K20: 0.0433 | L20: 468998.8292 | M20: 26074.82923 | N20: 0.0588697592 | R20: 437056.2057
A21: Greater New Bedford | B21: 328164 | C21: 0.03197 | D21: 116276 | E21: 0.02948 | F21: 6433 | G21: 0.03615 | H21: 0.0317 | I21: 0.03517 | J21: 0.02877 | K21: 0.0317 | L21: 343354.8011 | M21: 15190.80107 | N21: 0.04629027277 | R21: 356081.4218
A22: Hampden | B22: 644216 | C22: 0.06276 | D22: 227686 | E22: 0.05773 | F22: 12519 | G22: 0.07034 | H22: 0.06193 | I22: 0.06904 | J22: 0.05648 | K22: 0.0619 | L22: 670462.5295 | M22: 26246.52954 | N22: 0.04074181569 | R22: 675828.0046
A23: Merrimack Valley | B23: 548754 | C23: 0.05346 | D23: 202563 | E23: 0.05136 | F23: 9781 | G23: 0.05496 | H23: 0.05256 | I23: 0.05881 | J23: 0.04811 | K23: 0.0526 | L23: 569730.6794 | M23: 20976.67938 | N23: 0.03822601636 | R23: 539831.893
A24: Metro North | B24: 1256714 | C24: 0.12243 | D24: 506597 | E24: 0.12844 | F24: 20162 | G24: 0.11329 | H24: 0.12339 | I24: 0.13467 | J24: 0.11019 | K24: 0.1234 | L24: 1336592.506 | M24: 79878.50638 | N24: 0.06356140409 | R24: 1251994.737
A25: Metro South/West | B25: 1385331 | C25: 0.13496 | D25: 553066 | E25: 0.14022 | F25: 21993 | G25: 0.12358 | H25: 0.13467 | I25: 0.14846 | J25: 0.12146 | K25: 0.1347 | L25: 1458987.12 | M25: 73656.12001 | N25: 0.05316860737 | R25: 1371380.636
A26: North Central | B26: 383491 | C26: 0.03736 | D26: 144942 | E26: 0.03675 | F26: 7062 | G26: 0.03968 | H26: 0.03773 | I26: 0.0411 | J26: 0.03362 | K26: 0.0377 | L26: 408343.0915 | M26: 24852.0915 | N26: 0.0648048885 | R26: 387225.5694
A27: North Shore | B27: 639494 | C27: 0.0623 | D27: 245552 | E27: 0.06226 | F27: 11042 | G27: 0.06204 | H27: 0.06219 | I27: 0.06853 | J27: 0.05607 | K27: 0.0622 | L27: 673711.9441 | M27: 34217.94406 | N27: 0.05350784223 | R27: 647798.2717
A28: South Shore | B28: 842223 | C28: 0.08205 | D28: 327510 | E28: 0.08304 | F28: 14212 | G28: 0.07986 | H28: 0.08198 | I28: 0.09026 | J28: 0.07385 | K28: 0.082 | L28: 888173.3025 | M28: 45950.30246 | N28: 0.05455835623 | R28: 840891.9872
B30: 10264756 | C30: =SUM(C13:C28) -> 1 | D30: =SUM(D13:D28) -> 3944196 | E30: 1 | F30: 177970 | G30: 1.00001 | H30: 1 | I30: 1.10003 | J30: 0.89999 | K30: 1.00013 | L30: 10832790 | M30: 568034 | N30: 0.05533828568 | R30: 10381694
L32: Program Name | M32: ES 90%
A33: * Labor force and unemployed data are for calendar year 2025 (CY25), January 2025 to December 2025, not seasonally adjusted. | L33: Service Dates | M33: 7/1/2026-6/30/2027
A34: Note: The allocation methodology for ES Wagner Peyser 90% and 10% funds is based on two factors: | L34: SSTA | M34: DCS_FESS90_EOL004
A35: 1) Number of individuals in the local workforce area's labor force (2/3 weight). | L35: Phase Code | M35: K105
A36: 2) Number of unemployed individuals in the local workforce area (1/3 weight). | L36: Appropriation | M36: 70026626
A37: Hold Harmless: Share cannot be less than 90% and not more than 110% of prior year's share.
A38: Note per 29 U.S. Code § 49f(c) and 20 CFR 652.205: WP90% and WP10% funds authorized under the Wagner-Peyser Act may be used per Section 7(c) to provide additional funding for other activities authorized under the Workforce Innovation and Opportunity Act provided the activities meet requirements defined in Section 7(c)(1-4).
A39: MassHire Department of Career Services | E39: Based on 80% Local Share of State Wagner-Peyser 90% Allotment | K39: Date: June 6, 2026

Sheet FY27 ES10
F1: ATTACHMENT
E2: Commonwealth of Massachusetts
F3: Wagner-Peyser 10% Funds
F4: Formula Allocations
F5: FISCAL YEAR 2027
I8: FY 2027 | J8: FY 2027
A9: MassHire | C9: Final | H9: FY 2027 | I9: Hold | J9: Hold | K9: Final | M9: Change | N9: % Change
A10: Workforce | B10: FY 2026 | C10: FY 2026 | D10: CY 2025 | E10: Labor | F10: CY2025 | H10: Weighted | I10: Harmless | J10: Harmless | K10: FY 2027 | L10: FY 2027 | M10: from | N10: from
A11: Area | B11: Allocation | C11: Formula | D11: Labor | E11: Force | F11: Number of | G11: Unemployed | H11: Formula | I11: Upper | J11: Lower | K11: Formula | L11: Allocation | M11: FY 2026 | N11: FY 2026
C12: Share | D12: Force | E12: Share | F12: Unemployed | G12: Share | H12: Share | I12: Share | J12: Share | K12: Share
A14: Berkshire | B14: 14584.4985 | C14: 0.0165 | D14: 65335 | E14: =ROUND(D14/$D$31,5) -> 0.01656 | F14: 2879 | G14: =ROUND(F14/$F$31,5) -> 0.01618 | H14: =ROUND((E14*2+G14)/3,5) -> 0.01643 | I14: =ROUND(C14*1.1,5) -> 0.01815 | J14: =ROUND(C14*0.9,5) -> 0.01485 | K14: 0.01643 | L14: =K14*$L$31 -> 15326.28189 | M14: =L14-B14 -> 741.78339 | N14: =M14/B14 -> 0.05086108309
A15: Boston | B15: 89593.01624 | C15: 0.10136 | D15: 408983 | E15: =ROUND(D15/$D$31,5) -> 0.10369 | F15: 17909 | G15: =ROUND(F15/$F$31,5) -> 0.10063 | H15: =ROUND((E15*2+G15)/3,5) -> 0.10267 | I15: =ROUND(C15*1.1,5) -> 0.1115 | J15: =ROUND(C15*0.9,5) -> 0.09122 | K15: 0.10267 | L15: =K15*$L$31 -> 95772.93741 | M15: =L15-B15 -> 6179.92117 | N15: =M15/B15 -> 0.06897771087
A16: Bristol | B16: 49790.59397 | C16: 0.05633 | D16: 215833 | E16: 0.05472 | F16: 10580 | G16: 0.05945 | H16: 0.0563 | I16: 0.06196 | J16: 0.0507 | K16: 0.0563 | L16: 52517.9349 | M16: 2727.34093 | N16: 0.05477622805
A17: Brockton | B17: 33402.92111 | C17: 0.03779 | D17: 143645 | E17: 0.03642 | F17: 7027 | G17: 0.03948 | H17: 0.03744 | I17: 0.04157 | J17: 0.03401 | K17: 0.03744 | L17: 34924.89312 | M17: 1521.97201 | N17: 0.04556403929
A18: Cape & Islands | B18: 33464.79474 | C18: 0.03786 | D18: 139634 | E18: 0.0354 | F18: 7405 | G18: 0.04161 | H18: 0.03747 | I18: 0.04165 | J18: 0.03407 | K18: 0.03747 | L18: 34952.87781 | M18: 1488.08307 | N18: 0.04446712079
A19: Central MA | B19: 76838.20937 | C19: 0.08693 | D19: 345720 | E19: 0.08765 | F19: 15563 | G19: 0.08745 | H19: 0.08758 | I19: 0.09562 | J19: 0.07824 | K19: 0.08758 | L19: 81696.63834 | M19: 4858.42897 | N19: 0.06322933616
A20: Franklin/Hampshire | B20: 28983.37611 | C20: 0.03279 | D20: 131150 | E20: 0.03325 | F20: 5602 | G20: 0.03148 | H20: 0.03266 | I20: 0.03607 | J20: 0.02951 | K20: 0.03266 | L20: 30465.99918 | M20: 1482.62307 | N20: 0.05115425699
A21: Greater Lowell | B21: 38140.67335 | C21: 0.04315 | D21: 169704 | E21: 0.04303 | F21: 7801 | G21: 0.04383 | H21: 0.0433 | I21: 0.04747 | J21: 0.03884 | K21: 0.0433 | L21: 40391.2359 | M21: 2250.56255 | N21: 0.05900689087
A22: Greater New Bedford | B22: 28258.57073 | C22: 0.03197 | D22: 116276 | E22: 0.02948 | F22: 6433 | G22: 0.03615 | H22: 0.0317 | I22: 0.03517 | J22: 0.02877 | K22: 0.0317 | L22: 29570.4891 | M22: 1311.91837 | N22: 0.04642550335
A23: Hampden | B23: 55474.12884 | C23: 0.06276 | D23: 227686 | E23: 0.05773 | F23: 12519 | G23: 0.07034 | H23: 0.06193 | I23: 0.06904 | J23: 0.05648 | K23: 0.06193 | L23: 57769.72839 | M23: 2295.59955 | N23: 0.04138144389
A24: Merrimack Valley | B24: 47253.77514 | C24: 0.05346 | D24: 202563 | E24: 0.05136 | F24: 9781 | G24: 0.05496 | H24: 0.05256 | I24: 0.05881 | J24: 0.04811 | K24: 0.05256 | L24: 49029.17688 | M24: 1775.40174 | N24: 0.03757163813
A25: Metro North | B25: 108216.9789 | C25: 0.12243 | D25: 506597 | E25: 0.12844 | F25: 20162 | G25: 0.11329 | H25: 0.12339 | I25: 0.13467 | J25: 0.11019 | K25: 0.12339 | L25: 115101.03 | M25: 6884.0511 | N25: 0.0636134105
A26: Metro South/West | B26: 119292.3586 | C26: 0.13496 | D26: 553066 | E26: 0.14022 | F26: 21993 | G26: 0.12358 | H26: 0.13467 | I26: 0.14846 | J26: 0.12146 | K26: 0.13467 | L26: 125623.2734 | M26: 6330.91477 | N26: 0.0530705809
A27: North Central | B27: 33022.84024 | C27: 0.03736 | D27: 144942 | E27: 0.03675 | F27: 7062 | G27: 0.03968 | H27: 0.03773 | I27: 0.0411 | J27: 0.03362 | K27: 0.03773 | L27: 35195.41179 | M27: 2172.57155 | N27: 0.06578996641
A28: North Shore | B28: 55067.5307 | C28: 0.0623 | D28: 245552 | E28: 0.06226 | F28: 11042 | G28: 0.06204 | H28: 0.06219 | I28: 0.06853 | J28: 0.05607 | K28: 0.06219 | L28: 58012.26237 | M28: 2944.73167 | N28: 0.05347491766
A29: South Coastal | B29: 72524.73345 | C29: 0.08205 | D29: 327510 | E29: 0.08304 | F29: 14212 | G29: 0.07986 | H29: 0.08198 | I29: 0.09026 | J29: 0.07385 | K29: 0.08198 | L29: 76472.82954 | M29: 3948.09609 | N29: 0.05443792624
B31: 883909 | C31: 0.99997 | D31: =SUM(D14:D29) -> 3944196 | E31: 1 | F31: 177970 | G31: 1.00001 | H31: 1 | I31: 1.10003 | J31: 0.89999 | K31: 0.99997 | L31: 932823 | M31: 48914 | N31: 0.05533827577
A33: * Labor force and unemployed data are for calendar year 2025 (CY25), January 2025 to December 2025, not seasonally adjusted. | L33: Program Name | M33: ES 10%
A34: Note: The allocation methodology for ES Wagner Peyser 90% and 10% funds is based on two factors: | L34: Service Dates | M34: 7/1/2026-6/30/2027
A35: 1) Number of individuals in the local workforce area's labor force (2/3 weight). | L35: SSTA | M35: DCSL_FESS10_EOL118
A36: 2) Number of unemployed individuals in the local workforce area (1/3 weight). | L36: Phase Code | M36: K107
A37: Hold Harmless: Share cannot be less than 90% and not more than 110% of prior year's share. | L37: Appropriation | M37: 70026626
A39: Note per 29 U.S. Code § 49f(c) 20 CFR 652.205: WP90% and WP10% funds authorized under the Wagner-Peyser Act may be used peer Secion 7(c) to provide addition funding for
A40: other activities authorized under the Workforce Innovaiton and Opportunity Act provided the actifities meet requirements defined in Section 7(c)(1-4)
A42: MassHire Department of Career Services | E42: Based on 62% Local Share of State Wagner-Peyser 10% Allotment | K42: Date: | L42: 2026-06-08
